Workbook

Sheet 二级利润测算
A1: 合同利润测算表
A2: 合同名称 | B2: 北京市顺义区农业农村局OA办公系统建设项目
A3: 合同收入 | I3: 合同收入 | J3: 535600
A4: 客户名称 | B4: 合同类型 | C4: 合同含税金额 | D4: 税率 | E4: 合同不含税金额 | F4: 销项税金 | I4: 自有人员成本预算 | J4: 无
A5: 农业农村局 | B5: 软件开发服务 | C5: 400000 | D5: 0.06 | E5: =C5/(1+D5) -> 377358.4906 | F5: =C5-E5 -> 22641.50943 | I5: 外包外采成本预算 | J5: 135600
I6: 费用预算 | J6: 0
A7: 收入小计 | C7: =SUM(C5:C6) -> 400000 | E7: =SUM(E5:E6) -> 377358.4906 | F7: =SUM(F5:F6) -> 22641.50943 | I7: 利润 | J7: 251360.97
A8: 分包成本（预算） | I8: 利润率 | J8: 0.6661
A9: 供应商名称 | B9: 合同类型 | C9: 合同含税金额 | D9: 税率 | E9: 合同不含税金额 | F9: 进项税金
A10: 福通四维 | B10: 售前服务 | C10: 80000 | D10: 0.06 | E10: =C10/(1+D10) -> 75471.69811 | F10: =C10-E10 -> 4528.301887
B11: 服务器 | C11: 40600 | D11: 0.13 | E11: =C11/(1+D11) -> 35929.20354 | F11: =C11-E11 -> 4670.79646
B12: 操作系统购置 | C12: 15000 | D12: 0.13 | E12: =C12/(1+D12) -> 13274.33628 | F12: =C12-E12 -> 1725.663717
A13: 直接成本小计 | C13: =SUM(C10:C12) -> 135600 | E13: =SUM(E10:E12) -> 124675.2379 | F13: =SUM(F10:F12) -> 10924.76206
A14: 增值税
A15: 税金分类 | F15: 应交增值税
A16: 增值税 | F16: =F7-F13 -> 11716.74737
A17: 资金占用费
A18: 占用资金 | C18: 占用时间（月） | D18: 占用费率（月） | E18: 资金占用费金额
A19: 0 | C19: 6 | D19: 0.01 | E19: =A19*C19*D19 -> 0
A20: 管理费用
A21: 费用分类 | E21: 预计费用金额
A22: 城建税、附加税、地方税 | E22: =F16*0.1 -> 1171.674737
A23: 印花税 | E23: =(E13+E7)*3/10000 -> 150.6101186
A24: 办公费
A25: 差旅费
A26: 招待费
A27: 售前投入 | E27: 0
A28: 项目人员薪酬
A29: 其他费用
A30: 项目费用小计 | E30: =SUM(E22:E29) -> 1322.284856
A31: 项目成本费用合计 | E31: =E30+E13+E19 -> 125997.5228
A32: 合同利润
A33: 利润 | C33: =E7-E31 -> 251360.9678 | D33: 财务利润（不含售前） | F33: =E7-E31+E27 -> 251360.9678
A34: 利润率 | C34: =C33/E7 -> 0.6661065646 | D34: 利润率 | F34: =F33/E7 -> 0.6661065646

Sheet 三级利润测算
A1: 合同利润测算表（三级公司）
A2: 合同名称 | B2: 举例
A3: 合同收入
A4: 客户名称 | B4: 合同类型 | C4: 合同含税金额 | D4: 税率 | E4: 合同不含税金额 | F4: 销项税金
E5: =C5/(1+D5) -> 0 | F5: =C5-E5 -> 0
E6: =C6/(1+D6) -> 0 | F6: =C6-E6 -> 0
A7: 收入小计 | C7: =SUM(C5:C6) -> 0 | E7: =SUM(E5:E6) -> 0 | F7: =SUM(F5:F6) -> 0
A8: 分包成本（预算）
A9: 供应商名称 | B9: 合同类型 | C9: 合同含税金额 | D9: 税率 | E9: 合同不含税金额 | F9: 进项税金
A10: --- | B10: 服务 | E10: =C10/(1+D10) -> 0 | F10: =C10-E10 -> 0
E11: =C11/(1+D11) -> 0 | F11: =C11-E11 -> 0
E12: 0 | F12: 0
A13: 直接成本小计 | C13: =SUM(C10:C12) -> 0 | E13: =SUM(E10:E12) -> 0 | F13: =SUM(F10:F12) -> 0
A14: 增值税
A15: 税金分类 | F15: 应交增值税
A16: 增值税 | F16: =F7-F13 -> 0
A17: 资金占用费
A18: 占用资金 | C18: 占用时间（月） | D18: 占用费率（月） | E18: 资金占用费金额
D19: 0.01 | E19: =A19*C19*D19 -> 0
A20: 管理费用
A21: 费用分类 | E21: 预计费用金额
A22: 城建税、附加税、地方税 | E22: =F16*0.1 -> 0
A23: 印花税 | E23: =(E13+E7)*3/10000 -> 0
A24: 办公费
A25: 差旅费
A26: 招待费
A27: 售前投入 | E27: 20000
A28: 项目人员薪酬
A29: 其他费用
A30: 项目费用小计 | E30: =SUM(E22:E29) -> 20000
A31: 项目成本费用合计 | E31: =E30+E13+E19 -> 20000
A32: 合同利润
A33: 利润 | C33: =E7-E31 -> -20000 | D33: 财务利润（不含售前） | F33: =E7-E31+E27 -> 0
A34: 利润率 | C34: =C33/E7 ->  | D34: 利润率 | F34: =F33/E7 -> 

Sheet 合并利润
A1: 合同利润二三级合并测算表
A2: 合同名称 | B2: =二级利润测算!B2 -> 北京市顺义区农业农村局OA办公系统建设项目
A3: 合同收入
C4: 合同含税金额 | D4: 税率 | E4: 合同不含税金额
A5: 收入小计 | C5: =二级利润测算!C7 -> 400000 | E5: =二级利润测算!E7 -> 377358.4906
A6: 分包成本
C7: 合同含税金额 | D7: 税率 | E7: 合同不含税金额
A8: 第三方分包成本 | C8: =三级利润测算!C13 -> 0 | E8: =三级利润测算!E13 -> 0
A9: 管理费用（二、三级合并）
A10: 费用分类 | C10: 二级费用 | D10: 三级费用 | E10: 预计费用金额合计
A11: 城建税、附加税、地方税 | C11: =二级利润测算!E22 -> 1171.674737 | D11: =三级利润测算!E22 -> 0 | E11: =SUM(C11:D11) -> 1171.674737
A12: 印花税 | C12: =二级利润测算!E23 -> 150.6101186 | D12: =三级利润测算!E23 -> 0 | E12: =SUM(C12:D12) -> 150.6101186
A13: 办公费 | C13: =二级利润测算!E24 -> 0 | D13: =三级利润测算!E24 -> 0 | E13: 0
A14: 差旅费 | C14: =二级利润测算!E25 -> 0 | D14: =三级利润测算!E25 -> 0 | E14: 0
A15: 招待费 | C15: =二级利润测算!E26 -> 0 | D15: =三级利润测算!E26 -> 0 | E15: 0
A16: 售前投入 | C16: =二级利润测算!E27 -> 0 | D16: =三级利润测算!E27 -> 20000 | E16: =SUM(C16:D16) -> 20000
A17: 项目人员薪酬 | C17: =二级利润测算!E28 -> 0 | D17: =三级利润测算!E28 -> 0 | E17: 0
A18: 其他费用 | C18: =二级利润测算!E29 -> 0 | D18: =三级利润测算!E29 -> 0 | E18: 0
A19: 项目费用小计 | C19: =二级利润测算!E30 -> 1322.284856 | D19: =三级利润测算!E30 -> 20000 | E19: 21322.28486
A20: 资金占用费用 | C20: =二级利润测算!E19 -> 0 | D20: =三级利润测算!E19 -> 0 | E20: =SUM(C20:D20) -> 0
A21: 项目成本费用合计 | E21: =E19+E8+E20 -> 21322.28486
A22: 合同利润
A23: 利润 | C23: =E5-E21 -> 356036.2057 | D23: 利润（不含售前） | E23: =E5-E21+E16 -> 376036.2057
A24: 利润率 | C24: =E23/E5 -> 0.9964959451 | D24: 利润率 | E24: =E23/E5 -> 0.9964959451
